fUSD/lending_fUSD_20260622
["ID","MTS","AMOUNT","RATE_DAILY","PERIOD"]
[425987536,1782076242000,-151.0,0.00021852,2]
[425987551,1782076242000,-543.0,0.00022,2]
[425987559,1782076242000,-168.31,0.00022141,2]
[425987554,1782076242000,-178.0,0.00022,2]
[425987555,1782076242000,-3593.17233122,0.00022003,2]
[425987560,1782076242000,-150.0,0.00022141,2]
[425987557,1782076242000,-250.0,0.00022141,2]
[425987556,1782076242000,-500.0,0.0002214,2]
[425987553,1782076242000,-171.0,0.00022,2]
[425987558,1782076242000,-249.089,0.00022141,2]
[425987562,1782076242000,-151.0,0.00022141,2]
[425987565,1782076242000,-383.0,0.00022141,2]
[425987515,1782076242000,-200.0,0.00021454,2]
[425987563,1782076242000,-3560.0,0.00022141,2]
[425987552,1782076242000,-164.0,0.00022,2]
[425987533,1782076242000,-586.97564939,0.00021815,2]
[425987549,1782076242000,-368.0,0.00022,2]
[425987531,1782076242000,-959.0526,0.00021757,7]
[425987506,1782076242000,-589.0,0.00021,2]
[425987535,1782076242000,-151.303782,0.00021852,2]
[425987510,1782076242000,-164.0,0.00021,2]
[425987512,1782076242000,-178.0,0.00021,2]
[425987511,1782076242000,-171.0,0.00021,2]
[425987513,1782076242000,-708.82183344,0.00021257,7]
[425987509,1782076242000,-543.0,0.00021,2]
[425987514,1782076242000,-5902.14,0.00021273,2]
[425987517,1782076242000,-151.0,0.00021605,2]
[425987520,1782076242000,-151.0,0.00021605,2]
[425987518,1782076242000,-151.0,0.00021605,2]
[425987519,1782076242000,-151.000008,0.00021605,2]
[425987525,1782076242000,-152.28869,0.00021682,2]
[425987507,1782076242000,-368.0,0.00021,2]
[425987526,1782076242000,-151.0,0.00021682,2]
[425987521,1782076242000,-151.0,0.00021605,2]
[425987532,1782076242000,-13170.57731836,0.00021787,2]
[425987530,1782076242000,-2081.6451524,0.00021682,2]
[425987528,1782076242000,-151.370911,0.00021682,2]
[425987537,1782076242000,-5000.0,0.00021918,2]
[425987538,1782076242000,-200.0,0.00021918,2]
[425987534,1782076242000,-15310.6866146,0.00021852,2]
[425987523,1782076242000,-151.0,0.00021605,2]
[425987522,1782076242000,-151.0,0.00021605,2]
[425987524,1782076242000,-154.50402,0.00021682,2]
[425987527,1782076242000,-153.164862,0.00021682,2]
[425987529,1782076242000,-37150.9196476,0.00021682,2]
[425987605,1782076243000,-151.0,0.00022645,2]
[425987602,1782076243000,-578.20924308,0.00022645,2]
[425987598,1782076243000,-194.72792766,0.00022645,2]
[425987600,1782076243000,-152.0,0.00022645,2]
[425987608,1782076243000,-670.58624095,0.00022645,2]
[425987607,1782076243000,-151.0,0.00022645,2]
[425987596,1782076243000,-500.0,0.00022645,2]
[425987597,1782076243000,-157.20998939,0.00022645,2]
[425987604,1782076243000,-194.72792766,0.00022645,2]
[425987593,1782076243000,-174.61919141,0.00022645,2]
[425987609,1782076243000,-194.72792766,0.00022645,2]
[425987606,1782076243000,-194.72792766,0.00022645,2]
[425987612,1782076243000,-275.01256262,0.000227,2]
[425987614,1782076243000,-739.97833201,0.000227,2]
[425987611,1782076243000,-153.17277875,0.000227,2]
[425987613,1782076243000,-393.85113171,0.000227,2]
[425987615,1782076243000,-169.7978212,0.000227,2]
[425987616,1782076243000,-7460.60701294,0.000227,2]
[425987619,1782076243000,-200.0,0.00022703,2]
[425987618,1782076243000,-181.2441486,0.000227,2]
[425987617,1782076243000,-356.2640052,0.000227,2]
[425987620,1782076243000,-153.17277875,0.00022755,2]
[425987622,1782076243000,-179.54,0.000228,7]
[425987591,1782076243000,-194.72792766,0.00022645,2]
[425987610,1782076243000,-375.19947755,0.00022645,2]
[425987590,1782076243000,-163.55955707,0.00022645,2]
[425987621,1782076243000,-500.0,0.00022799,2]
[425987595,1782076243000,-8882.6885148,0.00022645,2]
[425987571,1782076243000,-6812.03917255,0.00022154,2]
[425987567,1782076243000,-1231.662,0.00022141,2]
[425987566,1782076243000,-1276.0,0.00022141,2]
[425987570,1782076243000,-3593.17233122,0.00022146,2]
[425987572,1782076243000,-393.85113171,0.000222,2]
[425987568,1782076243000,-3647.0,0.00022141,2]
[425987573,1782076243000,-739.97833201,0.000222,2]
[425987569,1782076243000,-6081.0,0.00022141,2]
[425987575,1782076243000,-7460.60701294,0.000222,2]
[425987581,1782076243000,-393.85113171,0.000224,2]
[425987577,1782076243000,-181.2441486,0.000222,2]
[425987574,1782076243000,-169.7978212,0.000222,2]
[425987576,1782076243000,-356.2640052,0.000222,2]
[425987578,1782076243000,-316.0,0.000222,2]
[425987579,1782076243000,-662.41409633,0.00022332,2]
[425987583,1782076243000,-169.7978212,0.000224,2]
[425987584,1782076243000,-7460.60701294,0.000224,2]
[425987582,1782076243000,-739.97833201,0.000224,2]
[425987580,1782076243000,-151.0,0.00022353,2]
[425987585,1782076243000,-356.2640052,0.000224,2]
[425987589,1782076243000,-157.03199323,0.00022645,2]
[425987594,1782076243000,-644.79446246,0.00022645,2]
[425987592,1782076243000,-155.48525482,0.00022645,2]
[425987586,1782076243000,-181.2441486,0.000224,2]
[425987588,1782076243000,-153.17277875,0.00022645,2]
[425987587,1782076243000,-706.01,0.00022466,2]
[425987625,1782076243000,-500.0,0.00022868,2]
[425987640,1782076243000,-500.0,0.00022899,2]
[425987629,1782076243000,-500.0,0.00022868,2]
[425987662,1782076243000,-500.0,0.00023099,2]
[425987665,1782076243000,-500.0,0.00023099,2]
[425987668,1782076243000,-7460.60701294,0.000231,2]
[425987663,1782076243000,-500.0,0.00023099,2]
[425987661,1782076243000,-178.0,0.00023,2]
[425987667,1782076243000,-739.97833201,0.000231,2]
[425987660,1782076243000,-171.0,0.00023,2]
[425987659,1782076243000,-164.0,0.00023,2]
[425987664,1782076243000,-723.45,0.00023099,2]
[425987666,1782076243000,-393.85113171,0.000231,2]
[425987672,1782076243000,-201.93286098,0.00023193,2]
[425987655,1782076243000,-299.0,0.00023,2]
[425987674,1782076243000,-209.40437684,0.00023193,2]
[425987671,1782076243000,-163.55955707,0.00023193,2]
[425987675,1782076243000,-151.0,0.00023193,2]
[425987676,1782076243000,-201.93286098,0.00023193,2]
[425987670,1782076243000,-157.03199323,0.00023193,2]
[425987677,1782076243000,-209.05292702,0.00023193,2]
[425987678,1782076243000,-375.19947755,0.00023193,2]
[425987679,1782076243000,-238.95,0.000232,14]
[425987673,1782076243000,-181.08010149,0.00023193,2]
[425987680,1782076243000,-150.0,0.0002326,21]
[425987682,1782076243000,-200.0,0.00023456,2]
[425987628,1782076243000,-500.0,0.00022868,2]
[425987681,1782076243000,-7460.60701294,0.000234,2]
[425987653,1782076243000,-190.41371826,0.00022999,2]
[425987669,1782076243000,-356.2640052,0.000231,2]
[425987654,1782076243000,-500.0,0.00022999,2]
[425987632,1782076243000,-500.0,0.00022868,2]
[425987657,1782076243000,-368.0,0.00023,2]
[425987624,1782076243000,-153.17277875,0.00022865,2]
[425987627,1782076243000,-515.55433603,0.00022868,2]
[425987623,1782076243000,-153.17277875,0.0002281,2]
[425987626,1782076243000,-500.0,0.00022868,2]
[425987630,1782076243000,-500.0,0.00022868,2]
[425987636,1782076243000,-500.0,0.00022868,2]
[425987645,1782076243000,-181.2441486,0.000229,2]
[425987639,1782076243000,-500.0,0.00022868,2]
[425987646,1782076243000,-153.17277883,0.0002292,2]
[425987683,1782076243000,-500.0,0.00023599,2]
[425987644,1782076243000,-356.2640052,0.000229,2]
[425987634,1782076243000,-723.45,0.00022868,2]
[425987656,1782076243000,-589.0,0.00023,2]
[425987641,1782076243000,-393.85113171,0.000229,2]
[425987638,1782076243000,-500.0,0.00022868,2]
[425987643,1782076243000,-7460.60701294,0.000229,2]
[425987648,1782076243000,-500.0,0.00022999,2]
[425987658,1782076243000,-543.0,0.00023,2]
[425987650,1782076243000,-193.55777922,0.00022999,2]
[425987649,1782076243000,-406.84363158,0.00022999,2]
[425987651,1782076243000,-723.45,0.00022999,2]
[425987647,1782076243000,-500.0,0.00022999,2]
[425987642,1782076243000,-739.97833201,0.000229,2]
[425987652,1782076243000,-500.0,0.00022999,2]
[425987723,1782076244000,-151.0,0.000243,2]
[425987720,1782076244000,-375.19947755,0.00024289,2]
[425987718,1782076244000,-151.0,0.00024289,2]
[425987719,1782076244000,-217.15233878,0.00024289,2]
[425987711,1782076244000,-200.0,0.00024209,2]
[425987721,1782076244000,-7460.60701294,0.000243,2]
[425987717,1782076244000,-194.72792766,0.00024289,2]
[425987726,1782076244000,-150.0,0.00024333,2]
[425987713,1782076244000,-776.81819459,0.00024253,2]
[425987724,1782076244000,-151.0,0.000243,2]
[425987716,1782076244000,-217.15233878,0.00024289,2]
[425987722,1782076244000,-151.0,0.000243,2]
[425987733,1782076244000,-1000.0,0.00024658,2]
[425987727,1782076244000,-193.43483806,0.0002437,2]
[425987730,1782076244000,-150.0,0.00024633,7]
[425987729,1782076244000,-151.0,0.00024542,2]
[425987732,1782076244000,-851.0,0.00024646,10]
[425987728,1782076244000,-158.0,0.00024404,2]
[425987738,1782076244000,-500.0,0.00024658,2]
[425987736,1782076244000,-151.0,0.00024658,2]
[425987737,1782076244000,-500.0,0.00024658,2]
[425987735,1782076244000,-325.87,0.00024658,2]
[425987731,1782076244000,-150.0,0.00024633,7]
[425987734,1782076244000,-151.0,0.00024658,2]
[425987710,1782076244000,-7460.60701294,0.000241,2]
[425987725,1782076244000,-151.0,0.00024324,2]
[425987708,1782076244000,-171.0,0.00024,2]
[425987690,1782076244000,-187.78006524,0.00023741,2]
[425987706,1782076244000,-543.0,0.00024,2]
[425987685,1782076244000,-200.0,0.00023624,2]
[425987740,1782076244000,-500.0,0.00024658,2]
[425987684,1782076244000,-7460.60701294,0.000236,2]
[425987686,1782076244000,-2000.0,0.00023679,2]
[425987688,1782076244000,-163.55955707,0.00023741,2]
[425987691,1782076244000,-151.0,0.00023741,2]
[425987692,1782076244000,-209.40437684,0.00023741,2]
[425987687,1782076244000,-157.03199323,0.00023741,2]
[425987689,1782076244000,-209.40437684,0.00023741,2]
[425987694,1782076244000,-2485.957,0.00023783,4]
[425987696,1782076244000,-4000.0,0.00023798,5]
[425987695,1782076244000,-178.036,0.00023783,4]
[425987707,1782076244000,-164.0,0.00024,2]
[425987693,1782076244000,-375.19947755,0.00023741,2]
[425987703,1782076244000,-299.0,0.00024,2]
[425987701,1782076244000,-500.0,0.00023981,2]
[425987699,1782076244000,-1417.0,0.00023852,5]
[425987700,1782076244000,-1749.0,0.00023852,5]
[425987698,1782076244000,-1384.0,0.00023852,5]
[425987702,1782076244000,-500.0,0.00024,2]
[425987704,1782076244000,-589.0,0.00024,2]
[425987709,1782076244000,-178.0,0.00024,2]
[425987714,1782076244000,-157.03199323,0.00024289,2]
[425987705,1782076244000,-368.0,0.00024,2]
[425987712,1782076244000,-3773.70749426,0.0002421,2]
[425987715,1782076244000,-163.55955707,0.00024289,2]
[425987697,1782076244000,-7460.60701294,0.000238,2]
[425987741,1782076244000,-500.0,0.00024658,2]
[425987754,1782076244000,-10051.59836067,0.00024959,2]
[425987739,1782076244000,-500.0,0.00024658,2]
[425987775,1782076244000,-500.0,0.00025021,2]
[425987774,1782076244000,-723.45,0.00025021,2]
[425987776,1782076244000,-151.0,0.00025021,2]
[425987779,1782076244000,-10051.59836067,0.00025044,2]
[425987778,1782076244000,-10051.59836067,0.00025042,2]
[425987781,1782076244000,-183.92733603,0.00025066,2]
[425987783,1782076244000,-500.0,0.00025101,2]
[425987785,1782076244000,-310.42562231,0.00025106,2]
[425987786,1782076244000,-10051.59836067,0.00025116,2]
[425987784,1782076244000,-10051.59836067,0.00025102,2]
[425987782,1782076244000,-500.0,0.00025101,2]
[425987777,1782076244000,-10051.59836067,0.00025021,2]
[425987771,1782076244000,-10051.59836067,0.0002502,2]
[425987742,1782076244000,-166.34521468,0.00024658,2]
[425987789,1782076244000,-150.0,0.00025141,2]
[425987788,1782076244000,-150.0,0.00025141,2]
[425987792,1782076244000,-383.0,0.00025141,2]
[425987790,1782076244000,-3560.0,0.00025141,2]
[425987791,1782076244000,-1360.0,0.00025141,2]
[425987793,1782076244000,-1276.0,0.00025141,2]
[425987794,1782076244000,-1229.0,0.00025141,2]
[425987797,1782076244000,-500.0,0.00025152,2]
[425987795,1782076244000,-3647.0,0.00025141,2]
[425987796,1782076244000,-6081.0,0.00025141,2]
[425987798,1782076244000,-10051.59836067,0.00025153,2]
[425987799,1782076244000,-151.0,0.00025187,2]
[425987787,1782076244000,-150.0,0.00025141,2]
[425987767,1782076244000,-2000.0,0.00025,7]
[425987780,1782076244000,-10051.59836067,0.00025056,2]
[425987770,1782076244000,-158.0,0.00025014,2]
[425987769,1782076244000,-164.52,0.00025,2]
[425987751,1782076244000,-500.0,0.0002494,2]
[425987750,1782076244000,-375.19947755,0.00024837,2]
[425987743,1782076244000,-662.41409633,0.00024809,2]
[425987745,1782076244000,-163.55955707,0.00024837,2]
[425987744,1782076244000,-157.03199323,0.00024837,2]
[425987746,1782076244000,-269.29183923,0.00024837,2]
[425987748,1782076244000,-151.0,0.00024837,2]
[425987747,1782076244000,-201.93286098,0.00024837,2]
[425987752,1782076244000,-37150.9196476,0.00024941,2]
[425987755,1782076244000,-158.0,0.00024961,2]
[425987756,1782076244000,-200.0,0.00024962,2]
[425987758,1782076244000,-10051.59836067,0.00025,2]
[425987749,1782076244000,-225.18697532,0.00024837,2]
[425987761,1782076244000,-383.0,0.00025,2]
[425987759,1782076244000,-302.0,0.00025,2]
[425987773,1782076244000,-500.0,0.00025021,2]
[425987768,1782076244000,-164.52,0.00025,2]
[425987766,1782076244000,-196.0,0.00025,2]
[425987765,1782076244000,-190.69833086,0.00025,2]
[425987764,1782076244000,-170.67946025,0.00025,2]
[425987772,1782076244000,-507.25767885,0.00025021,2]
[425987753,1782076244000,-2081.6451524,0.00024941,2]
[425987763,1782076244000,-630.48088768,0.00025,5]
[425987760,1782076244000,-593.08537861,0.00025,2]
[425987757,1782076244000,-10051.59836067,0.00024984,2]
[425987762,1782076244000,-554.0,0.00025,2]
[425987824,1782076245000,-163.55955707,0.00025933,2]
[425987814,1782076245000,-3712.1257281,0.0002542,2]
[425987813,1782076245000,-206.0,0.00025416,2]
[425987818,1782076245000,-3552.72,0.00025786,2]
[425987812,1782076245000,-375.19947755,0.00025385,2]
[425987815,1782076245000,-200.0,0.00025715,2]
[425987826,1782076245000,-151.0,0.00025933,2]
[425987828,1782076245000,-375.19947755,0.00025933,2]
[425987827,1782076245000,-242.15909246,0.00025933,2]
[425987832,1782076245000,-1500.0,0.00026067,3]
[425987831,1782076245000,-2401.51862858,0.00026,2]
[425987830,1782076245000,-550.0,0.00026,2]
[425987816,1782076245000,-5902.14,0.00025786,2]
[425987825,1782076245000,-217.15233878,0.00025933,2]
[425987809,1782076245000,-209.40437684,0.00025385,2]
[425987834,1782076245000,-151.0,0.00026296,2]
[425987822,1782076245000,-157.03199323,0.00025933,2]
[425987820,1782076245000,-2600.0,0.000259,9]
[425987811,1782076245000,-233.5188934,0.00025385,2]
[425987808,1782076245000,-163.55955707,0.00025385,2]
[425987804,1782076245000,-237.0,0.0002538,2]
[425987806,1782076245000,-695.39793187,0.00025384,2]
[425987803,1782076245000,-10051.59836067,0.00025355,2]
[425987802,1782076245000,-152.0,0.00025285,3]
[425987800,1782076245000,-10051.59836067,0.00025187,2]
[425987801,1782076245000,-10051.59836067,0.00025266,2]
[425987807,1782076245000,-157.03199323,0.00025385,2]
[425987805,1782076245000,-599.60298507,0.00025384,2]
[425987810,1782076245000,-151.0,0.00025385,2]
[425987833,1782076245000,-593.16686549,0.00026291,2]
[425987852,1782076245000,-723.45,0.00026499,2]
[425987829,1782076245000,-150.0,0.00025972,2]
[425987836,1782076245000,-347.549297,0.00026355,2]
[425987869,1782076245000,-50000.0,0.000265,5]
[425987866,1782076245000,-50000.0,0.000265,7]
[425987863,1782076245000,-50000.0,0.000265,7]
[425987872,1782076245000,-35279.06408848,0.000265,7]
[425987856,1782076245000,-151.0,0.00026499,2]
[425987850,1782076245000,-500.0,0.00026499,2]
[425987857,1782076245000,-151.0,0.00026499,2]
[425987859,1782076245000,-500.0,0.00026499,2]
[425987858,1782076245000,-151.0,0.00026499,2]
[425987851,1782076245000,-723.45,0.00026499,2]
[425987854,1782076245000,-500.0,0.00026499,2]
[425987853,1782076245000,-500.0,0.00026499,2]
[425987860,1782076245000,-50000.0,0.000265,7]
[425987861,1782076245000,-50000.0,0.000265,5]
[425987849,1782076245000,-505.19198669,0.00026499,2]
[425987838,1782076245000,-200.0,0.00026468,2]
[425987842,1782076245000,-151.0,0.00026481,2]
[425987835,1782076245000,-483.52388,0.00026355,2]
[425987843,1782076245000,-258.59049473,0.00026481,2]
[425987845,1782076245000,-500.0,0.00026498,2]
[425987855,1782076245000,-500.0,0.00026499,2]
[425987848,1782076245000,-500.0,0.00026499,2]
[425987841,1782076245000,-225.18697532,0.00026481,2]
[425987844,1782076245000,-375.19947755,0.00026481,2]
[425987837,1782076245000,-3416.2759563,0.00026358,2]
[425987839,1782076245000,-157.03199331,0.00026481,2]
[425987847,1782076245000,-3000.0,0.00026499,2]
[425987840,1782076245000,-163.55955707,0.00026481,2]
[425987846,1782076245000,-257.21243585,0.00026499,2]
[425987876,1782076246000,-423.53201287,0.0002261,2]
[425987874,1782076246000,-34.90110267,0.0002261,2]
[425987896,1782076247000,-1349.7984923,0.00018423,2]
[425987897,1782076247000,-415.87171291,0.00018423,2]
[425987899,1782076247000,-1928.736,0.00018423,2]
[425987898,1782076247000,-4729.2015077,0.00018423,2]
[425987902,1782076684000,150.0,0.00030136,120]
[425987913,1782077216000,-190.52231421,0.00013998,2]
[425987930,1782077431000,-151.0,0.00013998,2]
[425987933,1782077431000,-150.0,0.00013998,2]
[425987931,1782077431000,-150.0,0.00013998,2]
[425987929,1782077431000,-151.0,0.00013998,2]
[425987928,1782077431000,-152.0,0.00013998,2]
[425987926,1782077431000,-151.0,0.00013998,2]
[425987925,1782077431000,-151.0,0.00013998,2]
[425987924,1782077431000,-151.0,0.00013998,2]
[425987922,1782077431000,-150.0,0.00013998,2]
[425987921,1782077431000,-151.0,0.00013998,2]
[425987920,1782077431000,-600.0,0.00013998,2]
[425987918,1782077431000,-150.0,0.00013998,2]
[425987919,1782077431000,-300.0,0.00013998,2]
[425987917,1782077431000,-150.0,0.00013998,2]
[425987936,1782077431000,-150.0,0.00013998,2]
[425987923,1782077431000,-151.0,0.00013998,2]
[425987935,1782077431000,-153.0,0.00013998,2]
[425987927,1782077431000,-150.0,0.00013998,2]
[425987932,1782077431000,-152.0,0.00013998,2]
[425987934,1782077431000,-151.0,0.00013998,2]
[425987958,1782077431000,-153.0,0.00013999,2]
[425987956,1782077431000,-151.0,0.00013999,2]
[425987957,1782077431000,-151.0,0.00013999,2]
[425987952,1782077431000,-152.0,0.00013999,2]
[425987950,1782077431000,-152.0,0.00013999,2]
[425987944,1782077431000,-600.0,0.00013999,2]
[425987947,1782077431000,-152.0,0.00013999,2]
[425987955,1782077431000,-151.0,0.00013999,2]
[425987948,1782077431000,-150.0,0.00013999,2]
[425987945,1782077431000,-600.0,0.00013999,2]
[425987942,1782077431000,-300.0,0.00013998,2]
[425987943,1782077431000,-600.0,0.00013999,2]
[425987940,1782077431000,-300.0,0.00013998,2]
[425987937,1782077431000,-151.0,0.00013998,2]
[425987946,1782077431000,-151.0,0.00013999,2]
[425987938,1782077431000,-300.0,0.00013998,2]
[425987992,1782077432000,-317.0,0.00014048,2]
[425987993,1782077432000,-151.0,0.00014246,2]
[425987990,1782077432000,-317.0,0.00014048,2]
[425987987,1782077432000,-321.0,0.00014,2]
[425987988,1782077432000,-313.0,0.00014008,2]
[425987985,1782077432000,-313.0,0.00014,2]
[425987986,1782077432000,-150.0,0.00014,2]
[425987991,1782077432000,-312.0,0.00014048,2]
[425987989,1782077432000,-312.0,0.00014008,2]
[425987995,1782077432000,-320.0,0.00014246,2]
[425988003,1782077432000,-153.0,0.00014247,2]
[425987994,1782077432000,-320.0,0.00014246,2]
[425987997,1782077432000,-310.0,0.00014246,2]
[425987998,1782077432000,-321.0,0.00014246,2]
[425987996,1782077432000,-150.0,0.00014246,2]
[425988000,1782077432000,-319.0,0.00014246,2]
[425988001,1782077432000,-315.0,0.00014246,2]
[425988002,1782077432000,-311.0,0.00014247,2]
[425987984,1782077432000,-311.0,0.00014,2]
[425988004,1782077432000,-315.0,0.00014247,2]
[425988006,1782077432000,-152.0,0.00014247,2]
[425988007,1782077432000,-313.0,0.00014247,2]
[425987999,1782077432000,-152.0,0.00014246,2]
[425987982,1782077432000,-315.0,0.00014,2]
[425987972,1782077432000,-150.0,0.00014,2]
[425987981,1782077432000,-314.0,0.00014,2]
[425988008,1782077432000,-313.0,0.00014247,2]
[425987960,1782077432000,-150.0,0.00013999,2]
[425987961,1782077432000,-250.0,0.00014,2]
[425987959,1782077432000,-150.0,0.00013999,2]
[425987964,1782077432000,-310.0,0.00014,2]
[425987963,1782077432000,-151.0,0.00014,2]
[425987962,1782077432000,-150.0,0.00014,2]
[425987966,1782077432000,-311.0,0.00014,2]
[425987965,1782077432000,-151.0,0.00014,2]
[425987967,1782077432000,-318.0,0.00014,2]
[425987983,1782077432000,-151.0,0.00014,2]
[425987969,1782077432000,-152.0,0.00014,2]
[425987970,1782077432000,-311.0,0.00014,2]
[425987971,1782077432000,-316.0,0.00014,2]
[425987973,1782077432000,-320.0,0.00014,2]
[425987974,1782077432000,-319.0,0.00014,2]
[425987975,1782077432000,-309.0,0.00014,2]
[425987979,1782077432000,-151.0,0.00014,2]
[425987976,1782077432000,-152.0,0.00014,2]
[425987977,1782077432000,-317.0,0.00014,2]
[425987978,1782077432000,-315.0,0.00014,2]
[425987980,1782077432000,-309.0,0.00014,2]
[425987968,1782077432000,-319.0,0.00014,2]
[425988005,1782077432000,-318.0,0.00014247,2]
[425988020,1782077432000,-319.0,0.00014247,2]
[425988011,1782077432000,-316.0,0.00014247,2]
[425988038,1782077432000,-319.0,0.00014248,2]
[425988039,1782077432000,-320.0,0.00014248,2]
[425988040,1782077432000,-311.0,0.00014248,2]
[425988042,1782077432000,-151.0,0.00014249,2]
[425988043,1782077432000,-151.0,0.00014249,2]
[425988044,1782077432000,-310.0,0.00014249,2]
[425988041,1782077432000,-151.0,0.00014249,2]
[425988046,1782077432000,-321.0,0.00014249,2]
[425988045,1782077432000,-310.0,0.00014249,2]
[425988047,1782077432000,-150.0,0.00014249,2]
[425988048,1782077432000,-312.0,0.00014249,2]
[425988050,1782077432000,-151.0,0.00014249,2]
[425988052,1782077432000,-314.0,0.00014249,2]
[425988049,1782077432000,-317.0,0.00014249,2]
[425988054,1782077432000,-151.0,0.00014249,2]
[425988055,1782077432000,-313.0,0.00014249,2]
[425988053,1782077432000,-312.0,0.00014249,2]
[425988056,1782077432000,-311.0,0.00014249,2]
[425988057,1782077432000,-151.0,0.00014249,2]
[425988060,1782077432000,-318.86,0.00014249,2]
[425988058,1782077432000,-321.0,0.00014249,2]
[425988009,1782077432000,-315.0,0.00014247,2]
[425988059,1782077432000,-310.0,0.00014249,2]
[425988037,1782077432000,-310.0,0.00014248,2]
[425988036,1782077432000,-74.14263591,0.00014248,2]
[425988051,1782077432000,-315.0,0.00014249,2]
[425988033,1782077432000,-315.0,0.00014248,2]
[425988010,1782077432000,-151.0,0.00014247,2]
[425988013,1782077432000,-151.0,0.00014247,2]
[425988035,1782077432000,-78.85736409,0.00014248,2]
[425988012,1782077432000,-321.0,0.00014247,2]
[425988014,1782077432000,-318.0,0.00014247,2]
[425988016,1782077432000,-321.0,0.00014247,2]
[425988015,1782077432000,-317.0,0.00014247,2]
[425988017,1782077432000,-151.0,0.00014247,2]
[425988019,1782077432000,-312.0,0.00014247,2]
[425988021,1782077432000,-150.0,0.00014248,2]
[425988023,1782077432000,-312.0,0.00014248,2]
[425988018,1782077432000,-315.0,0.00014247,2]
[425988026,1782077432000,-317.0,0.00014248,2]
[425988024,1782077432000,-314.0,0.00014248,2]
[425988025,1782077432000,-151.0,0.00014248,2]
[425988027,1782077432000,-310.0,0.00014248,2]
[425988028,1782077432000,-151.0,0.00014248,2]
[425988030,1782077432000,-316.0,0.00014248,2]
[425988029,1782077432000,-313.0,0.00014248,2]
[425988022,1782077432000,-152.0,0.00014248,2]
[425988031,1782077432000,-312.0,0.00014248,2]
[425988032,1782077432000,-152.0,0.00014248,2]
[425988034,1782077432000,-309.0,0.00014248,2]
[425988091,1782077433000,-500.0,0.00014999,2]
[425988099,1782077433000,-567.50547427,0.00014999,2]
[425988095,1782077433000,-500.0,0.00014999,2]
[425988096,1782077433000,-500.0,0.00014999,2]
[425988093,1782077433000,-500.0,0.00014999,2]
[425988092,1782077433000,-500.0,0.00014999,2]
[425988097,1782077433000,-500.0,0.00014999,2]
[425988098,1782077433000,-500.0,0.00014999,2]
[425988090,1782077433000,-602.87,0.00014999,2]
[425988094,1782077433000,-500.0,0.00014999,2]
[425988100,1782077433000,-500.0,0.00014999,2]
[425988109,1782077433000,-500.0,0.00014999,2]
[425988103,1782077433000,-500.0,0.00014999,2]
[425988101,1782077433000,-500.0,0.00014999,2]
[425988104,1782077433000,-500.0,0.00014999,2]
[425988105,1782077433000,-500.0,0.00014999,2]
[425988108,1782077433000,-500.0,0.00014999,2]
[425988107,1782077433000,-500.0,0.00014999,2]
[425988106,1782077433000,-500.0,0.00014999,2]
[425988111,1782077433000,-500.0,0.00014999,2]